[Event "*** SCC Grand Prix: Titled Tuesday Blitz"]
[Site "Chess.com"]
[Date "2020.07.14"]
[Round "9"]
[White "Manukyan_Artak"]
[Black "KNCP_719"]
[Result "1/2-1/2"]
[WhiteElo "2374"]
[BlackElo "2508"]
[TimeControl "180+1"]
[EndTime "11:51:06 PDT"]
[Termination "Game drawn - insufficient material"]

1. e4 {[%clk 0:03:00.9]} 1... c6 {[%clk 0:02:56]} 2. d4 {[%clk 0:03:00.3]} 2...
d5 {[%clk 0:02:56.4]} 3. e5 {[%clk 0:03:00.7]} 3... c5 {[%clk 0:02:56.4]} 4.
dxc5 {[%clk 0:03:00.4]} 4... e6 {[%clk 0:02:56.2]} 5. a3 {[%clk 0:03:00.5]} 5...
Bxc5 {[%clk 0:02:55.9]} 6. b4 {[%clk 0:03:00.7]} 6... Be7 {[%clk 0:02:56.3]} 7.
c4 {[%clk 0:03:00.3]} 7... a5 {[%clk 0:02:47.5]} 8. b5 {[%clk 0:02:53.4]} 8...
dxc4 {[%clk 0:02:45.7]} 9. Qxd8+ {[%clk 0:02:51.5]} 9... Bxd8 {[%clk 0:02:46.6]}
10. Bxc4 {[%clk 0:02:52]} 10... Nd7 {[%clk 0:02:34.4]} 11. f4 {[%clk 0:02:48.4]}
11... Nb6 {[%clk 0:02:34.7]} 12. Bd3 {[%clk 0:02:41.9]} 12... Ne7 {[%clk
0:02:32.6]} 13. a4 {[%clk 0:02:40.3]} 13... O-O {[%clk 0:02:30.7]} 14. Ba3
{[%clk 0:02:39.2]} 14... Re8 {[%clk 0:02:29.8]} 15. Nc3 {[%clk 0:02:38.5]} 15...
Ned5 {[%clk 0:02:29.5]} 16. Nge2 {[%clk 0:02:37.4]} 16... Ne3 {[%clk 0:01:50.3]}
17. Kf2 {[%clk 0:02:26.7]} 17... Nbd5 {[%clk 0:01:49.3]} 18. Bc5 {[%clk
0:02:08.2]} 18... Ng4+ {[%clk 0:01:25.8]} 19. Kf3 {[%clk 0:01:58.5]} 19... Nxc3
{[%clk 0:01:20.7]} 20. Nxc3 {[%clk 0:01:50.4]} 20... Nh6 {[%clk 0:01:20]} 21.
Ne4 {[%clk 0:01:32.1]} 21... b6 {[%clk 0:01:19.7]} 22. Nd6 {[%clk 0:01:29.6]}
22... Rf8 {[%clk 0:00:48.3]} 23. Be4 {[%clk 0:01:23.9]} 23... Rb8 {[%clk
0:00:44.1]} 24. Ba3 {[%clk 0:01:17.6]} 24... Be7 {[%clk 0:00:44.1]} 25. Rhc1
{[%clk 0:00:54.6]} 25... f6 {[%clk 0:00:44.1]} 26. exf6 {[%clk 0:00:36.2]} 26...
Bxf6 {[%clk 0:00:44.2]} 27. Rab1 {[%clk 0:00:28.5]} 27... Bd7 {[%clk 0:00:29]}
28. Rc7 {[%clk 0:00:25.6]} 28... Rfd8 {[%clk 0:00:25.1]} 29. Nb7 {[%clk
0:00:20.2]} 29... Rbc8 {[%clk 0:00:18.2]} 30. Rbc1 {[%clk 0:00:20.3]} 30... Rxc7
{[%clk 0:00:02.7]} 31. Rxc7 {[%clk 0:00:21.2]} 31... Rc8 {[%clk 0:00:03]} 32.
Rxd7 {[%clk 0:00:20.9]} 32... Rc3+ {[%clk 0:00:03.6]} 33. Rd3 {[%clk 0:00:20.7]}
33... Rc4 {[%clk 0:00:04.1]} 34. Nd6 {[%clk 0:00:18.5]} 34... Rxa4 {[%clk
0:00:04.1]} 35. Bc1 {[%clk 0:00:14.9]} 35... Be7 {[%clk 0:00:04.4]} 36. Be3
{[%clk 0:00:13.9]} 36... Nf7 {[%clk 0:00:03.5]} 37. Nxf7 {[%clk 0:00:13.1]}
37... Kxf7 {[%clk 0:00:04.4]} 38. Bxb6 {[%clk 0:00:13.7]} 38... Rb4 {[%clk
0:00:05.3]} 39. Bc6 {[%clk 0:00:12.6]} 39... a4 {[%clk 0:00:05.3]} 40. Bd8
{[%clk 0:00:11.8]} 40... Bc5 {[%clk 0:00:04.3]} 41. Rd7+ {[%clk 0:00:10.4]}
41... Kg6 {[%clk 0:00:02.8]} 42. Rd3 {[%clk 0:00:08]} 42... Rb2 {[%clk
0:00:01.8]} 43. Be4+ {[%clk 0:00:04.9]} 43... Kf7 {[%clk 0:00:02.3]} 44. g4
{[%clk 0:00:05.6]} 44... a3 {[%clk 0:00:02.3]} 45. Rd1 {[%clk 0:00:04.6]} 45...
a2 {[%clk 0:00:02.5]} 46. b6 {[%clk 0:00:03.9]} 46... Bxb6 {[%clk 0:00:02.1]}
47. Bxb6 {[%clk 0:00:03.8]} 47... Rxb6 {[%clk 0:00:03]} 48. Ra1 {[%clk
0:00:04.7]} 48... Rb3+ {[%clk 0:00:03.4]} 49. Kf2 {[%clk 0:00:04.1]} 49... Rb2+
{[%clk 0:00:04]} 50. Ke3 {[%clk 0:00:04.6]} 50... h6 {[%clk 0:00:03.9]} 51. f5
{[%clk 0:00:04.4]} 51... Rxh2 {[%clk 0:00:03.6]} 52. fxe6+ {[%clk 0:00:04.1]}
52... Kxe6 {[%clk 0:00:04.5]} 53. Bd3 {[%clk 0:00:04]} 53... Ke5 {[%clk
0:00:04.2]} 54. Bc4 {[%clk 0:00:03.9]} 54... Rh3+ {[%clk 0:00:04.6]} 55. Kf2
{[%clk 0:00:03.9]} 55... Rc3 {[%clk 0:00:04.8]} 56. Bxa2 {[%clk 0:00:04]} 56...
Ra3 {[%clk 0:00:04.7]} 57. Re1+ {[%clk 0:00:04.1]} 57... Kf4 {[%clk 0:00:05.3]}
58. Be6 {[%clk 0:00:04.6]} 58... Rc3 {[%clk 0:00:04.5]} 59. Kf1 {[%clk
0:00:04.8]} 59... Kf3 {[%clk 0:00:03.2]} 60. Bf5 {[%clk 0:00:03.7]} 60... Ra3
{[%clk 0:00:02.3]} 61. Rd1 {[%clk 0:00:03.6]} 61... Ra2 {[%clk 0:00:01.7]} 62.
Rd3+ {[%clk 0:00:02.3]} 62... Kf4 {[%clk 0:00:02.3]} 63. Rd1 {[%clk 0:00:01.4]}
63... Rb2 {[%clk 0:00:02.2]} 64. Rd3 {[%clk 0:00:02.3]} 64... Kg5 {[%clk
0:00:02.3]} 65. Ke1 {[%clk 0:00:02.8]} 65... Kf4 {[%clk 0:00:03.2]} 66. Rd2
{[%clk 0:00:03.4]} 66... Rb3 {[%clk 0:00:02.6]} 67. Ke2 {[%clk 0:00:03.4]} 67...
Re3+ {[%clk 0:00:02.4]} 68. Kf2 {[%clk 0:00:03.3]} 68... Rh3 {[%clk 0:00:03.3]}
69. Kg2 {[%clk 0:00:04.2]} 69... Rg3+ {[%clk 0:00:03.5]} 70. Kh2 {[%clk
0:00:03.9]} 70... Rh3+ {[%clk 0:00:03.8]} 71. Kg2 {[%clk 0:00:04.8]} 71... Rg3+
{[%clk 0:00:03.9]} 72. Kh2 {[%clk 0:00:05.7]} 72... Ra3 {[%clk 0:00:04.8]} 73.
Rf2+ {[%clk 0:00:05.4]} 73... Kg5 {[%clk 0:00:05.1]} 74. Rg2 {[%clk 0:00:06.3]}
74... Kh4 {[%clk 0:00:05.3]} 75. Be6 {[%clk 0:00:06.7]} 75... Re3 {[%clk
0:00:03.9]} 76. Kg1 {[%clk 0:00:07.6]} 76... Rxe6 {[%clk 0:00:03.9]} 77. g5
{[%clk 0:00:08.1]} 77... hxg5 {[%clk 0:00:03.4]} 78. Rh2+ {[%clk 0:00:07.9]}
78... Kg4 {[%clk 0:00:03.8]} 79. Rg2+ {[%clk 0:00:08.8]} 79... Kf5 {[%clk
0:00:04.3]} 80. Kf2 {[%clk 0:00:09.7]} 80... Re4 {[%clk 0:00:04.2]} 81. Kg3
{[%clk 0:00:10.6]} 81... Rf4 {[%clk 0:00:05.1]} 82. Rd2 {[%clk 0:00:10]} 82...
Re4 {[%clk 0:00:05.4]} 83. Rd5+ {[%clk 0:00:10.3]} 83... Re5 {[%clk 0:00:05.9]}
84. Rd7 {[%clk 0:00:11.2]} 84... Kf6 {[%clk 0:00:03.1]} 85. Kf2 {[%clk
0:00:12.1]} 85... Rf5+ {[%clk 0:00:03.1]} 86. Kg3 {[%clk 0:00:11.7]} 86... Rf4
{[%clk 0:00:04]} 87. Rd6+ {[%clk 0:00:11.1]} 87... Kf5 {[%clk 0:00:04.1]} 88.
Ra6 {[%clk 0:00:12]} 88... Rb4 {[%clk 0:00:03.6]} 89. Ra5+ {[%clk 0:00:12]}
89... Kg6 {[%clk 0:00:04.1]} 90. Ra6+ {[%clk 0:00:12.4]} 90... Kh5 {[%clk
0:00:04.2]} 91. Ra3 {[%clk 0:00:12.2]} 91... Rc4 {[%clk 0:00:04.1]} 92. Rb3
{[%clk 0:00:12.2]} 92... g6 {[%clk 0:00:04.2]} 93. Ra3 {[%clk 0:00:12.5]} 93...
g4 {[%clk 0:00:04.4]} 94. Rb3 {[%clk 0:00:11.9]} 94... g5 {[%clk 0:00:03.1]} 95.
Ra3 {[%clk 0:00:12.1]} 95... Rc1 {[%clk 0:00:03.5]} 96. Ra8 {[%clk 0:00:09.8]}
96... Rc3+ {[%clk 0:00:03.5]} 97. Kg2 {[%clk 0:00:10]} 97... g3 {[%clk
0:00:04.4]} 98. Ra4 {[%clk 0:00:08.9]} 98... Rb3 {[%clk 0:00:03.1]} 99. Rc4
{[%clk 0:00:08.4]} 99... Ra3 {[%clk 0:00:02]} 100. Rb4 {[%clk 0:00:08.5]} 100...
Rd3 {[%clk 0:00:02.9]} 101. Rc4 {[%clk 0:00:08.5]} 101... Kg6 {[%clk 0:00:03.7]}
102. Rc5 {[%clk 0:00:07.4]} 102... Kh5 {[%clk 0:00:03.4]} 103. Rc4 {[%clk
0:00:07.5]} 103... Re3 {[%clk 0:00:04.3]} 104. Rb4 {[%clk 0:00:07.7]} 104... Kg6
{[%clk 0:00:04.7]} 105. Ra4 {[%clk 0:00:07.8]} 105... Kf5 {[%clk 0:00:05]} 106.
Rb4 {[%clk 0:00:07.4]} 106... Re4 {[%clk 0:00:04.7]} 107. Rxe4 {[%clk
0:00:05.8]} 107... Kxe4 {[%clk 0:00:05.6]} 108. Kxg3 {[%clk 0:00:06.7]} 108...
Kf5 {[%clk 0:00:06.5]} 109. Kf3 {[%clk 0:00:06.8]} 109... g4+ {[%clk 0:00:04.9]}
110. Kg3 {[%clk 0:00:07.2]} 110... Kf6 {[%clk 0:00:03.9]} 111. Kg2 {[%clk
0:00:07.7]} 111... Ke7 {[%clk 0:00:04.8]} 112. Kg3 {[%clk 0:00:07.6]} 112... Kd8
{[%clk 0:00:04.9]} 113. Kxg4 {[%clk 0:00:08.5]} 1/2-1/2

[Event "*** SCC Grand Prix: Titled Tuesday Blitz"]
[Site "Chess.com"]
[Date "2020.07.14"]
[Round "10"]
[White "Parhamov"]
[Black "SergeyKarjakin"]
[Result "1/2-1/2"]
[WhiteElo "3023"]
[BlackElo "2984"]
[TimeControl "180+1"]
[EndTime "11:52:07 PDT"]
[Termination "Game drawn by agreement"]

1. e4 {[%clk 0:03:00.9]} 1... e5 {[%clk 0:02:59.3]} 2. Nf3 {[%clk 0:03:00.7]}
2... Nc6 {[%clk 0:02:59.8]} 3. Bb5 {[%clk 0:03:00.2]} 3... Nf6 {[%clk 0:03:00]}
4. O-O {[%clk 0:03:00.5]} 4... Nxe4 {[%clk 0:03:00.6]} 5. Re1 {[%clk 0:03:00.5]}
5... Nd6 {[%clk 0:03:00.9]} 6. Nxe5 {[%clk 0:03:00.6]} 6... Be7 {[%clk
0:03:01.5]} 7. Bf1 {[%clk 0:03:00.2]} 7... Nxe5 {[%clk 0:03:01.7]} 8. Rxe5
{[%clk 0:03:00.1]} 8... O-O {[%clk 0:03:02.6]} 9. d4 {[%clk 0:02:59.7]} 9... Bf6
{[%clk 0:03:02.6]} 10. Re1 {[%clk 0:02:59.4]} 10... Re8 {[%clk 0:03:03]} 11. c3
{[%clk 0:02:59.3]} 11... Rxe1 {[%clk 0:03:01.6]} 12. Qxe1 {[%clk 0:02:59.6]}
12... Ne8 {[%clk 0:03:00]} 13. Bf4 {[%clk 0:02:59.2]} 1/2-1/2

[Event "*** SCC Grand Prix: Titled Tuesday Blitz"]
[Site "Chess.com"]
[Date "2020.07.14"]
[Round "10"]
[White "Speshka"]
[Black "louis198"]
[Result "1-0"]
[WhiteElo "2236"]
[BlackElo "2556"]
[TimeControl "180+1"]
[EndTime "11:53:28 PDT"]
[Termination "Speshka won by resignation"]

1. e4 {[%clk 0:03:00.9]} 1... e6 {[%clk 0:02:59.7]} 2. Qe2 {[%clk 0:02:59.7]}
2... d5 {[%clk 0:03:00.6]} 3. exd5 {[%clk 0:02:57.4]} 3... Qxd5 {[%clk
0:03:01.1]} 4. Nc3 {[%clk 0:02:57.5]} 4... Qa5 {[%clk 0:02:59.7]} 5. g3 {[%clk
0:02:57.2]} 5... Bd7 {[%clk 0:02:54.4]} 6. Bg2 {[%clk 0:02:56.9]} 6... Bc6
{[%clk 0:02:54]} 7. Nf3 {[%clk 0:02:56.2]} 7... Nf6 {[%clk 0:02:52.6]} 8. d4
{[%clk 0:02:55.2]} 8... Be7 {[%clk 0:02:50.2]} 9. Bd2 {[%clk 0:02:52.7]} 9...
Qa6 {[%clk 0:02:47.1]} 10. O-O {[%clk 0:02:48.8]} 10... O-O {[%clk 0:02:45.1]}
11. Ne5 {[%clk 0:02:45.2]} 11... Bxg2 {[%clk 0:02:43.3]} 12. Qxa6 {[%clk
0:02:40.4]} 12... Nxa6 {[%clk 0:02:42.4]} 13. Kxg2 {[%clk 0:02:39.8]} 13... c5
{[%clk 0:02:42.9]} 14. dxc5 {[%clk 0:02:38.6]} 14... Nxc5 {[%clk 0:02:41.3]} 15.
Be3 {[%clk 0:02:37.5]} 15... Rfd8 {[%clk 0:02:39]} 16. Rad1 {[%clk 0:02:36]}
16... a6 {[%clk 0:02:33.9]} 17. a3 {[%clk 0:02:27.9]} 17... b5 {[%clk
0:02:32.8]} 18. Nc6 {[%clk 0:02:25.3]} 18... Rxd1 {[%clk 0:02:32.6]} 19. Nxe7+
{[%clk 0:02:24.1]} 19... Kf8 {[%clk 0:02:32.3]} 20. Rxd1 {[%clk 0:02:23.7]} 1-0

[Event "*** SCC Grand Prix: Titled Tuesday Blitz"]
[Site "Chess.com"]
[Date "2020.07.14"]
[Round "10"]
[White "FearNoEvil12"]
[Black "isainz"]
[Result "1-0"]
[WhiteElo "2017"]
[BlackElo "2118"]
[TimeControl "180+1"]
[EndTime "11:53:48 PDT"]
[Termination "FearNoEvil12 won by resignation"]

1. e4 {[%clk 0:03:00.9]} 1... c5 {[%clk 0:02:58.6]} 2. Nc3 {[%clk 0:02:59.7]}
2... Nc6 {[%clk 0:02:56]} 3. f4 {[%clk 0:02:59.9]} 3... g6 {[%clk 0:02:51.7]} 4.
Nf3 {[%clk 0:02:58.6]} 4... Bg7 {[%clk 0:02:49.5]} 5. Bc4 {[%clk 0:02:59]} 5...
e6 {[%clk 0:02:45.2]} 6. f5 {[%clk 0:02:58.3]} 6... Nge7 {[%clk 0:02:39.8]} 7.
fxg6 {[%clk 0:02:57.1]} 7... hxg6 {[%clk 0:02:36.7]} 8. d3 {[%clk 0:02:57.5]}
8... d5 {[%clk 0:02:33.1]} 9. Bb3 {[%clk 0:02:56.2]} 9... c4 {[%clk 0:02:27.4]}
10. Ba4 {[%clk 0:02:52.5]} 10... Qa5 {[%clk 0:02:20.5]} 11. Bxc6+ {[%clk
0:02:48.4]} 11... Nxc6 {[%clk 0:02:19.1]} 12. O-O {[%clk 0:02:41.6]} 12... Qb6+
{[%clk 0:02:15.3]} 13. Kh1 {[%clk 0:02:40]} 13... d4 {[%clk 0:02:12.2]} 14. Ne2
{[%clk 0:02:39.3]} 14... cxd3 {[%clk 0:02:04]} 15. cxd3 {[%clk 0:02:38.2]} 15...
e5 {[%clk 0:02:02.3]} 16. a3 {[%clk 0:02:33.7]} 16... Be6 {[%clk 0:01:59.5]} 17.
Ng5 {[%clk 0:02:31.7]} 17... f6 {[%clk 0:01:54.3]} 18. Nxe6 {[%clk 0:02:30.2]}
1-0

[Event "*** SCC Grand Prix: Titled Tuesday Blitz"]
[Site "Chess.com"]
[Date "2020.07.14"]
[Round "10"]
[White "chito89"]
[Black "Denmark2015"]
[Result "0-1"]
[WhiteElo "2777"]
[BlackElo "2603"]
[TimeControl "180+1"]
[EndTime "11:53:55 PDT"]
[Termination "Denmark2015 won by resignation"]

1. e4 {[%clk 0:02:59.1]} 1... e6 {[%clk 0:03:00.2]} 2. d4 {[%clk 0:02:58.5]}
2... d5 {[%clk 0:03:00.5]} 3. Nc3 {[%clk 0:02:58]} 3... Bb4 {[%clk 0:02:56.9]}
4. Ne2 {[%clk 0:02:57.2]} 4... dxe4 {[%clk 0:02:56.3]} 5. a3 {[%clk 0:02:53.9]}
5... Bxc3+ {[%clk 0:02:56.2]} 6. Nxc3 {[%clk 0:02:54.8]} 6... Nc6 {[%clk
0:02:56.8]} 7. Bb5 {[%clk 0:02:52.6]} 7... Ne7 {[%clk 0:02:56.9]} 8. Be3 {[%clk
0:02:32.2]} 8... O-O {[%clk 0:02:50.4]} 9. Qd2 {[%clk 0:02:23.1]} 9... f5 {[%clk
0:02:46.5]} 10. O-O-O {[%clk 0:02:16]} 10... Nd5 {[%clk 0:02:45.7]} 11. f3
{[%clk 0:01:57]} 11... f4 {[%clk 0:02:42.3]} 12. Nxd5 {[%clk 0:01:51.9]} 12...
Qxd5 {[%clk 0:02:24.1]} 0-1

[Event "*** SCC Grand Prix: Titled Tuesday Blitz"]
[Site "Chess.com"]
[Date "2020.07.14"]
[Round "10"]
[White "KingChess345"]
[Black "Sueetin"]
[Result "0-1"]
[WhiteElo "2163"]
[BlackElo "2330"]
[TimeControl "180+1"]
[EndTime "11:53:55 PDT"]
[Termination "Sueetin won by resignation"]

1. d4 {[%clk 0:03:00.9]} 1... Nf6 {[%clk 0:02:59.7]} 2. Nf3 {[%clk 0:03:01.8]}
2... d5 {[%clk 0:02:59.4]} 3. g3 {[%clk 0:03:02.7]} 3... b5 {[%clk 0:02:56.1]}
4. Bg2 {[%clk 0:03:03.6]} 4... e6 {[%clk 0:02:55]} 5. O-O {[%clk 0:03:04.5]}
5... c5 {[%clk 0:02:52.4]} 6. a4 {[%clk 0:03:05.4]} 6... b4 {[%clk 0:02:52.3]}
7. c3 {[%clk 0:03:05.1]} 7... Be7 {[%clk 0:02:48.6]} 8. Bg5 {[%clk 0:02:58.5]}
8... Nbd7 {[%clk 0:02:45.3]} 9. a5 {[%clk 0:02:56.5]} 9... Ba6 {[%clk
0:02:44.4]} 10. Nbd2 {[%clk 0:02:52]} 10... bxc3 {[%clk 0:02:43.5]} 11. bxc3
{[%clk 0:02:51.5]} 11... h6 {[%clk 0:02:39.2]} 12. Bf4 {[%clk 0:02:38.9]} 12...
O-O {[%clk 0:02:38.6]} 13. Ne5 {[%clk 0:02:33.7]} 13... Nxe5 {[%clk 0:02:37.3]}
14. Bxe5 {[%clk 0:02:33.7]} 14... Rc8 {[%clk 0:02:29.9]} 15. Nf3 {[%clk
0:02:32]} 15... Ne4 {[%clk 0:02:28.1]} 16. Ra3 {[%clk 0:02:14.4]} 16... cxd4
{[%clk 0:02:27.2]} 0-1

[Event "*** SCC Grand Prix: Titled Tuesday Blitz"]
[Site "Chess.com"]
[Date "2020.07.14"]
[Round "10"]
[White "bratkoo"]
[Black "TheCount"]
[Result "0-1"]
[WhiteElo "2467"]
[BlackElo "2694"]
[TimeControl "180+1"]
[EndTime "11:54:06 PDT"]
[Termination "TheCount won by resignation"]

1. e4 {[%clk 0:03:00.9]} 1... c5 {[%clk 0:02:59.3]} 2. Nf3 {[%clk 0:02:59]} 2...
Nc6 {[%clk 0:02:59.7]} 3. Nc3 {[%clk 0:02:57]} 3... g6 {[%clk 0:02:59.3]} 4. d4
{[%clk 0:02:57.3]} 4... cxd4 {[%clk 0:03:00.2]} 5. Nxd4 {[%clk 0:02:57.8]} 5...
Bg7 {[%clk 0:03:00.7]} 6. Be3 {[%clk 0:02:58.3]} 6... Nf6 {[%clk 0:03:00.4]} 7.
Bc4 {[%clk 0:02:58.8]} 7... d6 {[%clk 0:03:00.1]} 8. f3 {[%clk 0:02:58.5]} 8...
O-O {[%clk 0:03:00.6]} 9. Qd2 {[%clk 0:02:58.1]} 9... Bd7 {[%clk 0:03:00.9]} 10.
O-O-O {[%clk 0:02:58]} 10... Rb8 {[%clk 0:03:01.4]} 11. Kb1 {[%clk 0:02:56.6]}
11... Na5 {[%clk 0:02:58.9]} 12. Be2 {[%clk 0:02:56.1]} 12... Qc8 {[%clk
0:02:33.6]} 13. h4 {[%clk 0:02:55.5]} 13... Nc4 {[%clk 0:02:32.9]} 14. Bxc4
{[%clk 0:02:55.2]} 14... Qxc4 {[%clk 0:02:33.8]} 15. h5 {[%clk 0:02:53.6]} 15...
Rfc8 {[%clk 0:02:32.7]} 16. hxg6 {[%clk 0:02:53.1]} 16... fxg6 {[%clk
0:02:25.8]} 17. g4 {[%clk 0:02:53.4]} 17... b5 {[%clk 0:02:17.3]} 18. g5 {[%clk
0:02:53.7]} 18... Nh5 {[%clk 0:02:14.9]} 19. Nd5 {[%clk 0:02:54]} 19... Re8
{[%clk 0:02:06.1]} 20. Ne2 {[%clk 0:02:38.6]} 20... Be6 {[%clk 0:01:40.2]} 21.
Nef4 {[%clk 0:02:37.9]} 21... Nxf4 {[%clk 0:01:37.5]} 22. Nxf4 {[%clk
0:02:37.4]} 22... Qxa2+ {[%clk 0:01:37]} 0-1

[Event "*** SCC Grand Prix: Titled Tuesday Blitz"]
[Site "Chess.com"]
[Date "2020.07.14"]
[Round "10"]
[White "crossingthestreet"]
[Black "AlexSuv"]
[Result "0-1"]
[WhiteElo "2425"]
[BlackElo "2541"]
[TimeControl "180+1"]
[EndTime "11:54:40 PDT"]
[Termination "AlexSuv won by resignation"]

1. d4 {[%clk 0:03:00.9]} 1... Nf6 {[%clk 0:02:59.5]} 2. Bf4 {[%clk 0:03:00.9]}
2... d6 {[%clk 0:02:58.5]} 3. Nc3 {[%clk 0:03:00]} 3... Nbd7 {[%clk 0:02:58.9]}
4. Nf3 {[%clk 0:02:57]} 4... g6 {[%clk 0:02:58]} 5. e4 {[%clk 0:02:57.1]} 5...
Bg7 {[%clk 0:02:58.5]} 6. Qd2 {[%clk 0:02:57.3]} 6... O-O {[%clk 0:02:58.2]} 7.
O-O-O {[%clk 0:02:56.6]} 7... c6 {[%clk 0:02:53.3]} 8. Bh6 {[%clk 0:02:56]} 8...
b5 {[%clk 0:02:52.5]} 9. Bd3 {[%clk 0:02:49.9]} 9... b4 {[%clk 0:02:51.3]} 10.
Ne2 {[%clk 0:02:49.7]} 10... a5 {[%clk 0:02:51.8]} 11. h4 {[%clk 0:02:46.8]}
11... e5 {[%clk 0:02:36.1]} 12. h5 {[%clk 0:02:24.6]} 12... Bxh6 {[%clk
0:02:34.7]} 13. Qxh6 {[%clk 0:02:21.8]} 13... Ng4 {[%clk 0:02:35.1]} 14. Qd2
{[%clk 0:02:20.3]} 14... Nxf2 {[%clk 0:02:34.8]} 15. hxg6 {[%clk 0:02:14.3]}
15... fxg6 {[%clk 0:02:35.7]} 16. dxe5 {[%clk 0:02:09.8]} 16... Nxh1 {[%clk
0:02:24.3]} 17. Bc4+ {[%clk 0:02:06.3]} 17... Kh8 {[%clk 0:02:21.8]} 18. Rxh1
{[%clk 0:01:57]} 18... Nxe5 {[%clk 0:02:21.9]} 19. Ng5 {[%clk 0:01:45.8]} 19...
h5 {[%clk 0:02:15.8]} 20. g4 {[%clk 0:01:41.5]} 20... Nxc4 {[%clk 0:02:13.8]}
21. Qd4+ {[%clk 0:01:37.4]} 21... Qf6 {[%clk 0:02:11.1]} 0-1

[Event "*** SCC Grand Prix: Titled Tuesday Blitz"]
[Site "Chess.com"]
[Date "2020.07.14"]
[Round "10"]
[White "Shuvalov"]
[Black "Josip_buje"]
[Result "1-0"]
[WhiteElo "2497"]
[BlackElo "2310"]
[TimeControl "180+1"]
[EndTime "11:54:51 PDT"]
[Termination "Shuvalov won by resignation"]

1. Nf3 {[%clk 0:02:56.2]} 1... d5 {[%clk 0:02:59.7]} 2. c4 {[%clk 0:02:56.1]}
2... c6 {[%clk 0:02:59.7]} 3. g3 {[%clk 0:02:56.3]} 3... Nf6 {[%clk 0:03:00.1]}
4. Bg2 {[%clk 0:02:56.5]} 4... Bf5 {[%clk 0:03:00.6]} 5. cxd5 {[%clk 0:02:51.7]}
5... cxd5 {[%clk 0:03:01.5]} 6. Qb3 {[%clk 0:02:51.6]} 6... Qc7 {[%clk
0:02:58.1]} 7. Nc3 {[%clk 0:02:51.2]} 7... e6 {[%clk 0:02:57.8]} 8. d3 {[%clk
0:02:51.5]} 8... Nc6 {[%clk 0:02:57.8]} 9. Bf4 {[%clk 0:02:51.3]} 9... Qb6
{[%clk 0:02:57.9]} 10. Qxb6 {[%clk 0:02:49.3]} 10... axb6 {[%clk 0:02:58.8]} 11.
O-O {[%clk 0:02:49.2]} 11... h6 {[%clk 0:02:57.2]} 12. Nb5 {[%clk 0:02:49.1]}
12... Rc8 {[%clk 0:02:46.2]} 13. a3 {[%clk 0:02:45.1]} 13... Be7 {[%clk
0:02:45.5]} 14. b4 {[%clk 0:02:37.5]} 14... O-O {[%clk 0:02:43.8]} 15. Rfc1
{[%clk 0:02:33.3]} 15... Rfd8 {[%clk 0:02:30.6]} 16. Bc7 {[%clk 0:02:30.5]}
16... Re8 {[%clk 0:02:22.4]} 17. Bxb6 {[%clk 0:02:29.9]} 17... Nd7 {[%clk
0:02:19.1]} 18. Be3 {[%clk 0:02:22.6]} 18... f6 {[%clk 0:02:13.1]} 19. Nfd4
{[%clk 0:02:19]} 19... Nxd4 {[%clk 0:02:06.9]} 20. Nxd4 {[%clk 0:02:18.4]} 20...
Ne5 {[%clk 0:01:34.4]} 21. Nxf5 {[%clk 0:02:14.4]} 21... exf5 {[%clk 0:01:35.3]}
22. Bxd5+ {[%clk 0:02:12.5]} 22... Kh8 {[%clk 0:01:34.3]} 23. Bxb7 {[%clk
0:02:10.9]} 1-0

[Event "*** SCC Grand Prix: Titled Tuesday Blitz"]
[Site "Chess.com"]
[Date "2020.07.14"]
[Round "10"]
[White "BJthechessgod"]
[Black "ChelsieMonica"]
[Result "1-0"]
[WhiteElo "2314"]
[BlackElo "2392"]
[TimeControl "180+1"]
[EndTime "11:55:05 PDT"]
[Termination "BJthechessgod won by resignation"]

1. d4 {[%clk 0:03:00.4]} 1... e5 {[%clk 0:02:57.3]} 2. dxe5 {[%clk 0:02:59.8]}
2... Nc6 {[%clk 0:02:57.7]} 3. Nf3 {[%clk 0:02:59.6]} 3... Qe7 {[%clk
0:02:57.4]} 4. Bf4 {[%clk 0:02:58.8]} 4... Qb4+ {[%clk 0:02:57.5]} 5. Bd2 {[%clk
0:02:53.7]} 5... Qxb2 {[%clk 0:02:57]} 6. Nc3 {[%clk 0:02:47.9]} 6... Nb4 {[%clk
0:02:53.1]} 7. Nd4 {[%clk 0:02:40.4]} 7... c5 {[%clk 0:02:27.6]} 8. Rb1 {[%clk
0:02:37.3]} 8... Qa3 {[%clk 0:02:27.2]} 9. Ndb5 {[%clk 0:02:35]} 9... Qa5 {[%clk
0:02:27.2]} 10. a3 {[%clk 0:02:33.4]} 10... a6 {[%clk 0:02:18.6]} 11. axb4
{[%clk 0:02:23.5]} 11... cxb4 {[%clk 0:02:16.6]} 12. Ra1 {[%clk 0:02:23.2]}
12... Qd8 {[%clk 0:01:44.8]} 13. Nd5 {[%clk 0:02:19.3]} 13... axb5 {[%clk
0:01:37.1]} 14. Rxa8 {[%clk 0:02:14.4]} 14... Bc5 {[%clk 0:01:35.8]} 15. Bxb4
{[%clk 0:01:58.3]} 15... Bxb4+ {[%clk 0:01:27.2]} 16. Nxb4 {[%clk 0:01:59.2]}
16... Ne7 {[%clk 0:01:27.3]} 17. Nd5 {[%clk 0:01:55.3]} 17... O-O {[%clk
0:01:25.6]} 18. Nxe7+ {[%clk 0:01:53.1]} 18... Qxe7 {[%clk 0:01:26.5]} 19. Qd6
{[%clk 0:01:53.1]} 19... Qg5 {[%clk 0:01:25.2]} 20. e3 {[%clk 0:01:52.5]} 20...
Qg6 {[%clk 0:01:24.3]} 21. Qxg6 {[%clk 0:01:51]} 1-0

[Event "*** SCC Grand Prix: Titled Tuesday Blitz"]
[Site "Chess.com"]
[Date "2020.07.14"]
[Round "10"]
[White "MIJUAREZ"]
[Black "Roza_Idrisova"]
[Result "1-0"]
[WhiteElo "2391"]
[BlackElo "2250"]
[TimeControl "180+1"]
[EndTime "11:55:07 PDT"]
[Termination "MIJUAREZ won by resignation"]

1. e4 {[%clk 0:03:00.9]} 1... c6 {[%clk 0:02:58.7]} 2. d4 {[%clk 0:02:59.3]}
2... d5 {[%clk 0:02:58.3]} 3. Nd2 {[%clk 0:02:59.8]} 3... Nh6 {[%clk 0:02:57]}
4. h3 {[%clk 0:02:52.1]} 4... g6 {[%clk 0:02:57.1]} 5. Ngf3 {[%clk 0:02:46.9]}
5... Bg7 {[%clk 0:02:56.9]} 6. Bd3 {[%clk 0:02:45.1]} 6... f6 {[%clk 0:02:56.7]}
7. O-O {[%clk 0:02:42.8]} 7... Nf7 {[%clk 0:02:56.7]} 8. Re1 {[%clk 0:02:43]}
8... O-O {[%clk 0:02:56.2]} 9. e5 {[%clk 0:02:37.5]} 9... fxe5 {[%clk
0:02:54.5]} 10. dxe5 {[%clk 0:02:37.4]} 10... e6 {[%clk 0:02:53.6]} 11. Nf1
{[%clk 0:02:29.9]} 11... Nd7 {[%clk 0:02:53]} 12. Bf4 {[%clk 0:02:29.8]} 12...
Nh6 {[%clk 0:02:45.5]} 13. Qd2 {[%clk 0:02:28.2]} 13... Nf5 {[%clk 0:02:40.3]}
14. Bg5 {[%clk 0:02:19.7]} 14... Qc7 {[%clk 0:02:39.4]} 15. g4 {[%clk
0:02:16.6]} 15... h6 {[%clk 0:02:30.7]} 16. gxf5 {[%clk 0:02:13.2]} 16... hxg5
{[%clk 0:02:30.5]} 17. f6 {[%clk 0:02:10.9]} 17... Bh6 {[%clk 0:02:29.9]} 18.
Bxg6 {[%clk 0:02:05.2]} 18... Nc5 {[%clk 0:02:19.4]} 19. N1h2 {[%clk 0:02:03.3]}
19... Ne4 {[%clk 0:02:11.7]} 20. Bxe4 {[%clk 0:02:02.5]} 20... dxe4 {[%clk
0:02:11.6]} 21. Rxe4 {[%clk 0:02:03.2]} 21... Rd8 {[%clk 0:02:08.4]} 22. Qe3
{[%clk 0:02:00.1]} 22... Qh7 {[%clk 0:02:03]} 23. Ng4 {[%clk 0:01:59.2]} 23...
Bd7 {[%clk 0:01:53.3]} 24. Kh2 {[%clk 0:01:56.4]} 24... Qg6 {[%clk 0:01:49]} 25.
Rg1 {[%clk 0:01:53.7]} 25... Kh7 {[%clk 0:01:46.7]} 26. Nxh6 {[%clk 0:01:52.8]}
26... Kxh6 {[%clk 0:01:41.8]} 27. Rh4+ {[%clk 0:01:51.2]} 1-0